fUSD/lending_fUSD_20260530
["ID","MTS","AMOUNT","RATE_DAILY","PERIOD"]
[423466463,1780143032000,-500.0,0.00012808,2]
[423466452,1780143032000,-150.0,0.00012096,2]
[423466455,1780143032000,-500.0,0.00012119,2]
[423466484,1780143032000,-184.9,0.00013079,2]
[423466457,1780143032000,-1415.99,0.00012168,2]
[423466458,1780143032000,-500.0,0.00012619,2]
[423466460,1780143032000,-164.77,0.00012732,2]
[423466464,1780143032000,-1174.0,0.00013,2]
[423466466,1780143032000,-643.71,0.00013067,2]
[423466450,1780143032000,-74.21993367,0.00012091,2]
[423466485,1780143032000,-478.87,0.00013081,2]
[423466517,1780143032000,-558.38,0.00013108,2]
[423466483,1780143032000,-549.55,0.00013078,2]
[423466511,1780143032000,-184.97,0.00013094,2]
[423466512,1780143032000,-184.9,0.00013101,2]
[423466514,1780143032000,-572.6,0.00013108,2]
[423466515,1780143032000,-481.78,0.00013108,2]
[423466521,1780143032000,-150.0,0.00013142,2]
[423466520,1780143032000,-478.85,0.00013127,2]
[423466522,1780143032000,-150.0,0.00013142,2]
[423466513,1780143032000,-572.6,0.00013101,2]
[423466527,1780143032000,-500.0,0.00013142,2]
[423466524,1780143032000,-500.0,0.00013142,2]
[423466526,1780143032000,-500.0,0.00013142,2]
[423466525,1780143032000,-500.0,0.00013142,2]
[423466519,1780143032000,-572.6,0.00013127,2]
[423466528,1780143032000,-340.22822065,0.00013142,2]
[423466518,1780143032000,-572.6,0.00013108,2]
[423466488,1780143032000,-481.78,0.00013081,2]
[423466523,1780143032000,-200.0,0.00013142,2]
[423466510,1780143032000,-395.79,0.00013094,2]
[423466516,1780143032000,-639.57,0.00013108,2]
[423466509,1780143032000,-574.86,0.00013094,2]
[423466492,1780143032000,-315.7080252,0.00013081,2]
[423466486,1780143032000,-568.18,0.00013081,2]
[423466507,1780143032000,-572.6,0.00013094,2]
[423466493,1780143032000,-284.2919748,0.00013082,2]
[423466491,1780143032000,-323.8719748,0.00013081,2]
[423466505,1780143032000,-395.79,0.00013094,2]
[423466500,1780143032000,-643.45,0.00013086,2]
[423466496,1780143032000,-343.29292514,0.00013066,2]
[423466489,1780143032000,-395.79,0.00013081,2]
[423466503,1780143032000,-481.78,0.00013091,2]
[423466502,1780143032000,-481.79,0.00013086,2]
[423466498,1780143032000,-300.15707486,0.00013066,2]
[423466508,1780143032000,-184.9,0.00013094,2]
[423466501,1780143032000,-160.8,0.00013086,2]
[423466504,1780143032000,-639.56,0.00013094,2]
[423466506,1780143032000,-572.6,0.00013094,2]
[423466499,1780143032000,-915.7080252,0.00013082,2]
[423466530,1780143033000,-226.10043685,0.00013142,2]
[423466529,1780143033000,-159.77177935,0.00013142,2]
[423466531,1780143033000,-273.89956315,0.00013142,2]
[423466533,1780143033000,-80.85627033,0.00013142,2]
[423466535,1780143033000,-391.98922897,0.00013142,2]
[423466536,1780143033000,-108.01077103,0.00013142,2]
[423466538,1780143033000,-260.51754897,0.00013142,2]
[423466537,1780143033000,-500.0,0.00013142,2]
[423466534,1780143033000,-500.0,0.00013142,2]
[423466532,1780143033000,-419.14372967,0.00013142,2]
[423466579,1780143038000,-564.0,0.00013142,2]
[423466578,1780143038000,-500.0,0.00013142,2]
[423466580,1780143038000,-156.33389924,0.00013142,2]
[423466577,1780143038000,-239.48245103,0.00013142,2]
[423466583,1780143038000,-2500.0,0.00013225,2]
[423466584,1780143038000,-5770.90107485,0.00013225,2]
[423466582,1780143038000,-5000.0,0.00013225,2]
[423466581,1780143038000,-2000.0,0.00013225,2]
[423466588,1780143040000,-154.61916634,0.00013225,2]
[423466598,1780143040000,-1445506.33001044,0.00013325,2]
[423466592,1780143040000,-518.92952763,0.00013225,2]
[423466589,1780143040000,-5272.54849338,0.00013225,2]
[423466590,1780143040000,-8497.72443353,0.00013225,2]
[423466597,1780143040000,-400.0,0.00013325,2]
[423466591,1780143040000,-20304.3295233,0.00013225,2]
[423466587,1780143040000,-1042.12422515,0.00013225,2]
[423466595,1780143040000,-582.26868508,0.00013324,2]
[423466596,1780143040000,-250.0,0.00013325,2]
[423466594,1780143040000,-151.0,0.00013322,2]
[423466599,1780143040000,-54493.66998956,0.00013325,2]
[423466600,1780143040000,-357.08295006,0.00013325,2]
[423466602,1780143040000,-328.86,0.00013325,2]
[423466601,1780143040000,-49085.09618617,0.00013325,2]
[423466593,1780143040000,-500.0,0.00013233,2]
[423466604,1780143041000,-1911.81576896,0.00013325,2]
[423466603,1780143041000,-4030.55,0.00013325,2]
[423466613,1780143046000,-481.78,0.00013108,2]
[423466615,1780143046000,-1287.92,0.00013225,2]
[423466614,1780143046000,-2709.49277126,0.00013225,2]
[423466653,1780144232000,-223.13192573,0.00011843,2]
[423466647,1780144232000,-171.28,0.00011586,2]
[423466651,1780144232000,-1316.75,0.00011779,2]
[423466650,1780144232000,-5353.44,0.00011758,2]
[423466669,1780144232000,-223.13192572,0.00011924,2]
[423466648,1780144232000,-1200.0,0.00011756,2]
[423466652,1780144232000,-2000.0,0.00011814,2]
[423466649,1780144232000,-150.0,0.00011756,2]
[423466654,1780144232000,-707.99,0.00011868,2]
[423466656,1780144232000,-245.33022803,0.00011917,2]
[423466666,1780144232000,-2899.32,0.00011918,2]
[423466661,1780144232000,-242.81612974,0.00011917,2]
[423466670,1780144232000,-150.0,0.00011927,2]
[423466668,1780144232000,-223.13192573,0.00011924,2]
[423466672,1780144232000,-437.15,0.00011948,2]
[423466660,1780144232000,-500.0,0.00011917,2]
[423466657,1780144232000,-500.0,0.00011917,2]
[423466673,1780144232000,-500.0,0.0001198,2]
[423466658,1780144232000,-154.55491268,0.00011917,2]
[423466663,1780144232000,-625.50745707,0.00011917,2]
[423466671,1780144232000,-200.0,0.00011929,2]
[423466655,1780144232000,-2702.35,0.00011903,2]
[423466665,1780144232000,-500.0,0.00011917,2]
[423466683,1780144233000,-643.71,0.00012259,2]
[423466695,1780144233000,-171.28,0.00012805,2]
[423466697,1780144233000,-1173.41,0.00012893,2]
[423466690,1780144233000,-284.8604,0.00012658,2]
[423466689,1780144233000,-171.28,0.00012399,2]
[423466688,1780144233000,-466.86,0.00012378,2]
[423466687,1780144233000,-643.45,0.00012279,2]
[423466685,1780144233000,-569.3,0.00012279,2]
[423466680,1780144233000,-1615.3,0.0001211,2]
[423466696,1780144233000,-255.0,0.00012825,2]
[423466681,1780144233000,-167.21,0.00012152,2]
[423466682,1780144233000,-572.6,0.00012248,2]
[423466677,1780144233000,-223.13192573,0.00012048,2]
[423466684,1780144233000,-643.45,0.00012272,2]
[423466678,1780144233000,-991.52,0.00012055,2]
[423466676,1780144233000,-223.13192573,0.00012046,2]
[423466675,1780144233000,-171.28,0.00011992,2]
[423466674,1780144233000,-2726.54,0.00011984,2]
[423466698,1780144233000,-9999.99,0.00012893,2]
[423466679,1780144233000,-466.86,0.00012076,2]
[423466686,1780144233000,-184.9,0.00012279,2]
[423466707,1780144233000,-1254.41808677,0.00013022,2]
[423466693,1780144233000,-639.04,0.00012758,2]
[423466691,1780144233000,-466.86,0.0001268,2]
[423466714,1780144233000,-500.0,0.00011756,2]
[423466715,1780144233000,-500.0,0.00011756,2]
[423466712,1780144233000,-500.0,0.00011756,2]
[423466711,1780144233000,-2424.07895351,0.00013022,2]
[423466709,1780144233000,-257.8752,0.00013022,2]
[423466710,1780144233000,-252.80804943,0.00013022,2]
[423466705,1780144233000,-25281.19694663,0.00013022,2]
[423466708,1780144233000,-655.85593076,0.00013022,2]
[423466713,1780144233000,-500.0,0.00011756,2]
[423466702,1780144233000,-498.2326,0.00012982,2]
[423466706,1780144233000,-125446.16047408,0.00013022,2]
[423466704,1780144233000,-51797.80663625,0.00013022,2]
[423466701,1780144233000,-466.86,0.00012981,2]
[423466703,1780144233000,-298365.98764786,0.00013022,2]
[423466694,1780144233000,-215.58360558,0.00012802,2]
[423466700,1780144233000,-1680.0,0.00012931,2]
[423466699,1780144233000,-19523.32254693,0.00012922,2]
[423466692,1780144233000,-250.0,0.00012744,2]
[423466716,1780144233000,-841.88054873,0.00013022,2]
[423466724,1780144238000,-500.0,0.00011756,2]
[423466725,1780144238000,-401.39971266,0.00011756,2]
[423466762,1780144243000,-250.0,0.00013022,2]
[423466755,1780144243000,-98.60028734,0.00011756,2]
[423466757,1780144243000,-150.0,0.00011756,2]
[423466758,1780144243000,-27803.18094805,0.00013022,2]
[423466759,1780144243000,-12090.572,0.00013022,2]
[423466761,1780144243000,-400.0,0.00013022,2]
[423466763,1780144243000,-7948.8021,0.00013042,2]
[423466765,1780144243000,-393.41,0.00013068,2]
[423466760,1780144243000,-953528.17857793,0.00013022,2]
[423466769,1780144243000,-395.79,0.0001307,2]
[423466768,1780144243000,-473.31,0.00013069,2]
[423466767,1780144243000,-611.69,0.00013069,2]
[423466764,1780144243000,-643.45,0.00013067,2]
[423466770,1780144243000,-639.3,0.0001307,2]
[423466771,1780144243000,-395.79,0.0001307,2]
[423466772,1780144243000,-643.45,0.0001307,2]
[423466774,1780144243000,-643.45,0.0001307,2]
[423466775,1780144243000,-621.3,0.0001307,2]
[423466773,1780144243000,-571.81,0.0001307,2]
[423466777,1780144243000,-643.45,0.0001307,2]
[423466776,1780144243000,-221.98,0.0001307,2]
[423466766,1780144243000,-574.88,0.00013068,2]
[423466827,1780144244000,-1584.63,0.00013094,2]
[423466825,1780144244000,-184.91,0.00013091,2]
[423466816,1780144244000,-481.96,0.00013086,2]
[423466820,1780144244000,-481.78,0.00013086,2]
[423466822,1780144244000,-475.35,0.00013091,2]
[423466818,1780144244000,-184.9,0.00013086,2]
[423466823,1780144244000,-572.6,0.00013091,2]
[423466810,1780144244000,-643.45,0.00013086,2]
[423466808,1780144244000,-481.78,0.00013086,2]
[423466831,1780144244000,-184.9,0.00013094,2]
[423466811,1780144244000,-642.25,0.00013086,2]
[423466814,1780144244000,-606.82,0.00013086,2]
[423466829,1780144244000,-481.78,0.00013094,2]
[423466839,1780144244000,-184.9,0.00013094,2]
[423466837,1780144244000,-481.78,0.00013094,2]
[423466841,1780144244000,-470.24,0.00013094,2]
[423466846,1780144244000,-643.45,0.00013094,2]
[423466834,1780144244000,-481.78,0.00013094,2]
[423466853,1780144244000,-184.9,0.00013094,2]
[423466849,1780144244000,-183.81,0.00013094,2]
[423466852,1780144244000,-572.6,0.00013094,2]
[423466855,1780144244000,-395.79,0.00013094,2]
[423466854,1780144244000,-395.79,0.00013094,2]
[423466856,1780144244000,-184.9,0.00013094,2]
[423466857,1780144244000,-571.51,0.00013094,2]
[423466807,1780144244000,-1100.0,0.00013082,2]
[423466836,1780144244000,-643.45,0.00013094,2]
[423466803,1780144244000,-481.78,0.00013081,2]
[423466793,1780144244000,-643.45,0.00013079,2]
[423466801,1780144244000,-481.78,0.00013081,2]
[423466778,1780144244000,-262.62,0.0001307,2]
[423466779,1780144244000,-643.71,0.00013071,2]
[423466780,1780144244000,-501.84,0.00013071,2]
[423466781,1780144244000,-481.96,0.00013078,2]
[423466783,1780144244000,-572.6,0.00013078,2]
[423466782,1780144244000,-574.86,0.00013078,2]
[423466867,1780144244000,-481.78,0.00013101,2]
[423466784,1780144244000,-643.45,0.00013078,2]
[423466790,1780144244000,-643.45,0.00013078,2]
[423466785,1780144244000,-571.45,0.00013078,2]
[423466787,1780144244000,-643.45,0.00013078,2]
[423466789,1780144244000,-572.6,0.00013078,2]
[423466799,1780144244000,-184.9,0.00013081,2]
[423466792,1780144244000,-481.78,0.00013079,2]
[423466791,1780144244000,-643.45,0.00013078,2]
[423466786,1780144244000,-643.45,0.00013078,2]
[423466794,1780144244000,-1584.63,0.00013081,2]
[423466795,1780144244000,-481.78,0.00013081,2]
[423466797,1780144244000,-572.6,0.00013081,2]
[423466798,1780144244000,-572.6,0.00013081,2]
[423466796,1780144244000,-481.78,0.00013081,2]
[423466802,1780144244000,-572.6,0.00013081,2]
[423466800,1780144244000,-481.78,0.00013081,2]
[423466804,1780144244000,-572.6,0.00013081,2]
[423466806,1780144244000,-500.0,0.00013082,2]
[423466805,1780144244000,-184.97,0.00013081,2]
[423466788,1780144244000,-481.78,0.00013078,2]
[423466869,1780144244000,-395.79,0.00013101,2]
[423466843,1780144244000,-476.1,0.00013094,2]
[423466858,1780144244000,-184.9,0.000131,2]
[423466892,1780144244000,-5032.23726087,0.00013131,2]
[423466888,1780144244000,-2500.0,0.00013125,2]
[423466894,1780144244000,-500.94201781,0.00013142,2]
[423466895,1780144244000,-500.0,0.00013142,2]
[423466896,1780144244000,-500.0,0.00013142,2]
[423466898,1780144244000,-275.39800743,0.00013142,2]
[423466900,1780144244000,-500.0,0.00013142,2]
[423466910,1780144244000,-500.0,0.00013142,2]
[423466911,1780144244000,-500.0,0.00013142,2]
[423466901,1780144244000,-500.0,0.00013142,2]
[423466902,1780144244000,-500.0,0.00013142,2]
[423466903,1780144244000,-500.0,0.00013142,2]
[423466907,1780144244000,-500.0,0.00013142,2]
[423466904,1780144244000,-500.0,0.00013142,2]
[423466905,1780144244000,-500.0,0.00013142,2]
[423466909,1780144244000,-500.0,0.00013142,2]
[423466906,1780144244000,-500.0,0.00013142,2]
[423466908,1780144244000,-500.0,0.00013142,2]
[423466913,1780144244000,-500.0,0.00013142,2]
[423466912,1780144244000,-500.0,0.00013142,2]
[423466914,1780144244000,-632.91659185,0.00013142,2]
[423466916,1780144244000,-150.0,0.00013142,2]
[423466917,1780144244000,-248.8833514,0.00013142,2]
[423466915,1780144244000,-150.0,0.00013142,2]
[423466919,1780144244000,-150.0,0.00013142,2]
[423466862,1780144244000,-481.78,0.000131,2]
[423466918,1780144244000,-150.0,0.00013142,2]
[423466885,1780144244000,-8629.9993,0.00013125,2]
[423466889,1780144244000,-1351.73,0.00013125,2]
[423466899,1780144244000,-500.0,0.00013142,2]
[423466890,1780144244000,-461.34,0.00013127,2]
[423466861,1780144244000,-395.79,0.000131,2]
[423466893,1780144244000,-19523.32254689,0.00013142,2]
[423466866,1780144244000,-469.37,0.00013101,2]
[423466870,1780144244000,-572.6,0.00013101,2]
[423466860,1780144244000,-574.86,0.000131,2]
[423466865,1780144244000,-478.94,0.00013101,2]
[423466864,1780144244000,-478.87,0.000131,2]
[423466859,1780144244000,-184.9,0.000131,2]
[423466868,1780144244000,-184.9,0.00013101,2]
[423466871,1780144244000,-572.6,0.00013101,2]
[423466872,1780144244000,-401.52,0.00013101,2]
[423466882,1780144244000,-2000.0,0.00013122,2]
[423466875,1780144244000,-643.45,0.00013108,2]
[423466863,1780144244000,-472.36,0.000131,2]
[423466883,1780144244000,-1244.15,0.00013122,2]
[423466873,1780144244000,-481.78,0.00013108,2]
[423466897,1780144244000,-403.39597363,0.00013142,2]
[423466887,1780144244000,-5000.0,0.00013125,2]
[423466886,1780144244000,-2000.0,0.00013125,2]
[423466881,1780144244000,-481.78,0.00013108,2]
[423466879,1780144244000,-184.9,0.00013108,2]
[423466884,1780144244000,-2092.75179619,0.00013125,2]
[423466878,1780144244000,-631.88,0.00013108,2]
[423466876,1780144244000,-250.97,0.00013108,2]
[423466874,1780144244000,-572.6,0.00013108,2]
[423466880,1780144244000,-1584.63,0.00013108,2]
[423466877,1780144244000,-574.86,0.00013108,2]
[423466954,1780144245000,-151.0,0.00013222,2]
[423466961,1780144245000,-2851.9101755,0.00013316,2]
[423466962,1780144245000,-172357.399971,0.00013316,2]
[423466959,1780144245000,-25904.5326605,0.00013316,2]
[423466949,1780144245000,-262.52274324,0.00013142,2]
[423466956,1780144245000,-466.86,0.00013283,2]
[423466958,1780144245000,-350.0,0.00013315,3]
[423466953,1780144245000,-151.0,0.00013222,2]
[423466952,1780144245000,-151.0,0.00013222,2]
[423466955,1780144245000,-811.03,0.00013252,2]
[423466972,1780144245000,-5032.23726084,0.00013384,2]
[423466957,1780144245000,-2000.0,0.00013291,2]
[423466973,1780144245000,-163.0,0.000134,2]
[423466969,1780144245000,-7647.95199014,0.00013346,2]
[423466963,1780144245000,-874.8833135,0.00013316,2]
[423466971,1780144245000,-403.0,0.0001337,2]
[423466966,1780144245000,-551.81763463,0.00013324,2]
[423466967,1780144245000,-151.0,0.00013325,2]
[423466970,1780144245000,-19523.32254689,0.00013362,2]
[423466968,1780144245000,-482.0,0.00013325,2]
[423466964,1780144245000,-9792.5277746,0.00013316,2]
[423466975,1780144245000,-437.15,0.00013442,2]
[423466985,1780144245000,-150.0,0.00013488,2]
[423466976,1780144245000,-1590.0,0.00013445,5]
[423466974,1780144245000,-151.0,0.00013422,2]
[423466951,1780144245000,-7647.95199015,0.00013152,2]
[423466965,1780144245000,-3204.3598397,0.00013316,2]
[423466960,1780144245000,-151.6585161,0.00013316,2]
[423466920,1780144245000,-209.03326579,0.00013142,2]
[423466947,1780144245000,-621.42824537,0.00013142,2]
[423466977,1780144245000,-1542.0,0.00013445,5]
[423466921,1780144245000,-150.0,0.00013142,2]
[423466923,1780144245000,-150.0,0.00013142,2]
[423466922,1780144245000,-150.0,0.00013142,2]
[423466928,1780144245000,-171.5958302,0.00013142,2]
[423466924,1780144245000,-154.56670401,0.00013142,2]
[423466927,1780144245000,-150.0,0.00013142,2]
[423466926,1780144245000,-150.0,0.00013142,2]
[423466933,1780144245000,-150.0,0.00013142,2]
[423466931,1780144245000,-158.79341703,0.00013142,2]
[423466932,1780144245000,-150.0,0.00013142,2]
[423466936,1780144245000,-156.87114969,0.00013142,2]
[423466929,1780144245000,-500.0,0.00013142,2]
[423466935,1780144245000,-150.0,0.00013142,2]
[423466930,1780144245000,-500.0,0.00013142,2]
[423466934,1780144245000,-150.0,0.00013142,2]
[423466948,1780144245000,-500.0,0.00013142,2]
[423466938,1780144245000,-500.0,0.00013142,2]
[423466942,1780144245000,-500.0,0.00013142,2]
[423466945,1780144245000,-500.0,0.00013142,2]
[423466940,1780144245000,-500.0,0.00013142,2]
[423466937,1780144245000,-500.0,0.00013142,2]
[423466939,1780144245000,-500.0,0.00013142,2]
[423466944,1780144245000,-500.0,0.00013142,2]
[423466943,1780144245000,-500.0,0.00013142,2]
[423466946,1780144245000,-500.0,0.00013142,2]
[423466941,1780144245000,-500.0,0.00013142,2]
[423466950,1780144245000,-150.0,0.00013142,2]
[423466980,1780144245000,-150.34604901,0.00013488,2]
[423466925,1780144245000,-150.0,0.00013142,2]
[423466983,1780144245000,-150.0,0.00013488,2]
[423467013,1780144245000,-18309.48,0.00013608,2]
[423467011,1780144245000,-150.0,0.00013603,2]
[423467015,1780144245000,-150.0,0.00013616,2]
[423467017,1780144245000,-150.0,0.00013621,2]
[423467018,1780144245000,-150.0,0.00013624,2]
[423467019,1780144245000,-1453.56,0.00013631,2]
[423467020,1780144245000,-5032.23726084,0.00013636,2]
[423467016,1780144245000,-150.0,0.00013618,2]
[423467021,1780144245000,-150.0,0.00013638,2]
[423467025,1780144245000,-150.0,0.00013659,2]
[423467022,1780144245000,-200.0,0.00013642,2]
[423467024,1780144245000,-150.0,0.00013654,2]
[423467027,1780144245000,-150.0,0.00013675,2]
[423467028,1780144245000,-150.0,0.00013683,2]
[423467032,1780144245000,-500.0,0.00013698,2]
[423467026,1780144245000,-150.0,0.00013671,2]
[423467033,1780144245000,-533.89,0.00013698,2]
[423467023,1780144245000,-150.0,0.00013643,2]
[423467030,1780144245000,-150.0,0.00013692,2]
[423467029,1780144245000,-150.0,0.00013687,2]
[423467035,1780144245000,-533.89,0.00013698,2]
[423467034,1780144245000,-533.89,0.00013698,2]
[423467039,1780144245000,-533.89,0.00013698,2]
[423467037,1780144245000,-533.89,0.00013698,2]
[423467036,1780144245000,-533.89,0.00013698,2]
[423467038,1780144245000,-533.89,0.00013698,2]
[423466982,1780144245000,-150.0,0.00013488,2]
[423467014,1780144245000,-350.0,0.00013615,2]
[423467012,1780144245000,-150.0,0.00013604,2]
[423467031,1780144245000,-150.0,0.00013694,2]
[423467004,1780144245000,-150.0,0.00013573,2]
[423467006,1780144245000,-150.0,0.00013588,2]
[423466981,1780144245000,-150.0,0.00013488,2]
[423466978,1780144245000,-3743.12247816,0.0001347,2]
[423466979,1780144245000,-163.0,0.0001348,2]
[423466984,1780144245000,-150.0,0.00013488,2]
[423466987,1780144245000,-150.0,0.00013488,2]
[423466986,1780144245000,-150.0,0.00013488,2]
[423466997,1780144245000,-150.0,0.00013539,2]
[423466989,1780144245000,-150.0,0.00013488,2]
[423466996,1780144245000,-1545.0,0.00013539,2]
[423466990,1780144245000,-1000.0,0.000135,2]
[423466995,1780144245000,-150.0,0.00013538,2]
[423466992,1780144245000,-150.0,0.00013504,2]
[423466998,1780144245000,-7647.95199014,0.0001354,2]
[423466993,1780144245000,-150.0,0.00013521,2]
[423467003,1780144245000,-150.0,0.00013571,2]
[423466988,1780144245000,-150.0,0.00013488,2]
[423467009,1780144245000,-375.453,0.00013592,2]
[423467007,1780144245000,-150.0,0.00013591,2]
[423467005,1780144245000,-19523.32254689,0.00013581,2]
[423467008,1780144245000,-4932.787,0.00013592,2]
[423467000,1780144245000,-150.0,0.00013554,2]
[423467010,1780144245000,-482.0,0.00013599,2]
[423467002,1780144245000,-1543.0,0.0001357,5]
[423467001,1780144245000,-150.0,0.00013556,2]
[423466999,1780144245000,-150.0,0.00013553,2]
[423466994,1780144245000,-150.0,0.0001353,2]
[423466991,1780144245000,-518.9295276,0.00013504,2]
[423467067,1780144246000,-680.59,0.00013698,2]
[423467060,1780144246000,-500.0,0.00013698,2]
[423467068,1780144246000,-680.59,0.00013698,2]
[423467056,1780144246000,-500.0,0.00013698,2]
[423467063,1780144246000,-680.59,0.00013698,2]
[423467061,1780144246000,-500.0,0.00013698,2]
[423467062,1780144246000,-500.0,0.00013698,2]
[423467072,1780144246000,-500.0,0.00013698,2]
[423467064,1780144246000,-680.59,0.00013698,2]
[423467069,1780144246000,-680.59,0.00013698,2]
[423467070,1780144246000,-680.59,0.00013698,2]
[423467065,1780144246000,-680.59,0.00013698,2]
[423467075,1780144246000,-500.0,0.00013698,2]
[423467055,1780144246000,-500.0,0.00013698,2]
[423467073,1780144246000,-500.0,0.00013698,2]
[423467066,1780144246000,-680.59,0.00013698,2]
[423467048,1780144246000,-583.95,0.00013698,2]
[423467043,1780144246000,-500.0,0.00013698,2]
[423467059,1780144246000,-500.0,0.00013698,2]
[423467074,1780144246000,-500.0,0.00013698,2]
[423467046,1780144246000,-583.95,0.00013698,2]
[423467045,1780144246000,-502.31004729,0.00013698,2]
[423467040,1780144246000,-533.89,0.00013698,2]
[423467042,1780144246000,-500.0,0.00013698,2]
[423467041,1780144246000,-500.0,0.00013698,2]
[423467044,1780144246000,-500.0,0.00013698,2]
[423467052,1780144246000,-583.95,0.00013698,2]
[423467050,1780144246000,-583.95,0.00013698,2]
[423467049,1780144246000,-583.95,0.00013698,2]
[423467047,1780144246000,-583.95,0.00013698,2]
[423467051,1780144246000,-583.95,0.00013698,2]
[423467053,1780144246000,-583.95,0.00013698,2]
[423467054,1780144246000,-161.53446073,0.00013698,2]
[423467057,1780144246000,-500.0,0.00013698,2]
[423467058,1780144246000,-500.0,0.00013698,2]
[423467071,1780144246000,-509.66155533,0.00013698,2]
[423467093,1780144246000,-420.45070713,0.00013698,2]
[423467089,1780144246000,-500.0,0.00013698,2]
[423467103,1780144246000,-500.0,0.00013698,2]
[423467105,1780144246000,-500.0,0.00013698,2]
[423467106,1780144246000,-500.0,0.00013698,2]
[423467111,1780144246000,-500.0,0.00013698,2]
[423467110,1780144246000,-500.0,0.00013698,2]
[423467108,1780144246000,-500.0,0.00013698,2]
[423467107,1780144246000,-500.0,0.00013698,2]
[423467104,1780144246000,-500.0,0.00013698,2]
[423467082,1780144246000,-500.0,0.00013698,2]
[423467113,1780144246000,-881.29,0.00013698,2]
[423467116,1780144246000,-879.99886155,0.00013698,2]
[423467115,1780144246000,-881.29,0.00013698,2]
[423467118,1780144246000,-881.29,0.00013698,2]
[423467120,1780144246000,-674.38761787,0.00012808,2]
[423467117,1780144246000,-1.29113845,0.00013698,2]
[423467119,1780144246000,-801.55934901,0.00013698,2]
[423467112,1780144246000,-881.29,0.00013698,2]
[423467114,1780144246000,-881.29,0.00013698,2]
[423467109,1780144246000,-500.0,0.00013698,2]
[423467092,1780144246000,-500.0,0.00013698,2]
[423467077,1780144246000,-500.0,0.00013698,2]
[423467086,1780144246000,-500.0,0.00013698,2]
[423467080,1780144246000,-500.0,0.00013698,2]
[423467084,1780144246000,-500.0,0.00013698,2]
[423467091,1780144246000,-500.0,0.00013698,2]
[423467090,1780144246000,-410.30161227,0.00013698,2]
[423467102,1780144246000,-557.5,0.00013698,2]
[423467088,1780144246000,-500.0,0.00013698,2]
[423467094,1780144246000,-295.37631974,0.00013698,2]
[423467095,1780144246000,-557.5,0.00013698,2]
[423467100,1780144246000,-557.5,0.00013698,2]
[423467096,1780144246000,-557.5,0.00013698,2]
[423467097,1780144246000,-557.5,0.00013698,2]
[423467098,1780144246000,-557.5,0.00013698,2]
[423467101,1780144246000,-557.5,0.00013698,2]
[423467099,1780144246000,-557.5,0.00013698,2]
[423467183,1780145431000,-2000.0,0.0001122,2]
[423467181,1780145431000,-172.25,0.00011135,2]
[423467185,1780145431000,-985.48,0.00011511,2]
[423467188,1780145431000,-150.0,0.00011587,2]
[423467186,1780145431000,-173.64,0.00011536,2]
[423467189,1780145431000,-1337.71,0.00011612,2]
[423467180,1780145431000,-245.0,0.00011113,2]
[423467184,1780145431000,-1433.97,0.00011426,2]
[423467182,1780145431000,-1433.97,0.00011154,2]